bitfinex-derivatives/quotes_ETHF0:USTF0_20260118
["timestamp","ask_amount","ask_price","bid_price","bid_amount"]
[1768768619134,0.23036708,3350.1,3348.8,0.00250506]
[1768768619335,0.87975486,3350.0,3349.0,0.95163204]
[1768768619637,0.23036708,3350.1,3349.0,0.95163204]
[1768768619929,0.87975466,3350.0,3349.0,0.95163204]
[1768768620135,0.23036708,3350.1,3349.0,0.95163204]
[1768768620334,0.87974152,3350.0,3349.0,0.95163204]
[1768768620537,0.23036708,3350.1,3349.0,0.95163204]
[1768768620737,0.87974152,3350.0,3349.0,0.95163204]
[1768768621040,0.23036708,3350.1,3349.0,0.95163204]
[1768768621242,0.87974152,3350.0,3349.0,0.95163204]
[1768768621426,0.23036708,3350.1,3349.0,0.95163204]
[1768768621631,0.87973508,3350.0,3349.0,0.95163204]
[1768768621840,0.23036708,3350.1,3349.0,0.95163204]
[1768768622139,0.87973508,3350.0,3349.0,0.95163204]
[1768768622343,0.23036708,3350.1,3349.0,0.95163204]
[1768768622545,0.87974455,3350.0,3348.8,0.00250506]
[1768768622841,0.23036708,3350.1,3349.0,0.95163204]
[1768768626740,0.23036708,3350.5,3349.3,0.95163204]
[1768768626941,0.23036708,3350.0,3349.0,0.14934]
[1768768627149,0.23036708,3349.7,3348.8,0.00250506]
[1768768627335,1.18199912,3349.5,3348.2,0.14938]
[1768768627536,0.23036708,3349.5,3348.2,0.14938]
[1768768628448,0.23036708,3349.5,3348.2,0.15244195]
[1768768630248,0.23036708,3349.5,3348.3,0.95163204]
[1768768630755,0.23036708,3349.5,3348.2,0.15244195]
[1768768631752,0.23036708,3349.4,3348.2,0.15244195]
[1768768635058,0.23036708,3349.2,3348.2,0.15244195]
[1768768635257,1.18199912,3349.1,3348.2,0.00306195]
[1768768635554,1.18199912,3349.1,3347.4,3.89151656]
[1768768635555,0.23036708,3349.0,3347.6,0.95163204]
[1768768636255,0.23036708,3349.0,3347.8,0.95163204]
[1768768636454,0.23036708,3349.0,3347.8,0.95460178]
[1768768639269,0.23036708,3349.0,3347.8,0.00296974]
[1768768639568,0.23036708,3348.8,3347.8,0.00296974]
[1768768649676,0.20523336,3348.6,3347.8,0.00296974]
[1768768649873,0.20767349,3348.6,3347.8,0.00296974]
[1768768653875,0.20767349,3348.6,3347.4,0.14941]
[1768768654068,0.20767349,3348.6,3346.9,1.662]
[1768768654869,0.20767349,3348.6,3346.9,1.66470083]
[1768768656570,0.20767349,3348.6,3346.9,0.00270083]
[1768768657274,0.19253024,3348.4,3346.9,0.00270083]
[1768768661576,0.00244013,3348.6,3346.9,0.00270083]
[1768768661577,0.19253024,3347.9,3346.9,0.00270083]
[1768768661784,0.19253024,3347.9,3346.0,3.89158656]
[1768768662086,0.19253024,3347.9,3346.0,0.14948]
[1768768662785,0.19253024,3347.9,3346.0,0.15243299]
[1768768669993,0.19253024,3347.7,3346.0,0.15243299]
[1768768677003,0.17449356,3347.5,3346.0,0.15243299]
[1768768681205,0.17449356,3347.3,3346.0,0.15243299]
[1768768685199,0.17449356,3347.1,3345.4,0.005978]
[1768768686404,0.17449356,3347.1,3345.4,0.00859928]
[1768768687702,0.17449356,3347.1,3345.4,0.15810928]
[1768768687901,0.17449356,3347.1,3345.6,0.1495]
[1768768688103,0.17449356,3347.1,3345.8,0.95235324]
[1768768688297,0.17449356,3347.1,3345.9,0.14948]
[1768768688806,0.17449356,3347.9,3345.9,0.14948]
[1768768689009,0.17449356,3347.7,3345.9,0.14948]
[1768768689198,0.17449356,3347.5,3345.9,0.14948]
[1768768689399,0.88196433,3347.4,3345.9,0.14948]
[1768768690307,0.88196433,3347.4,3346.0,0.14948]
[1768768690499,0.17449356,3347.5,3346.1,0.14947]
[1768768691914,0.17449356,3347.5,3346.2,0.14947]
[1768768692109,0.17449356,3347.5,3346.2,1.10182324]
[1768768694011,0.17449356,3347.5,3346.2,0.14947]
[1768768706417,0.17449356,3347.5,3345.5,3.74210656]
[1768768706418,0.1641508,3347.4,3345.5,3.74210656]
[1768768706618,0.1641508,3347.3,3345.6,0.1495]
[1768768706807,0.1641508,3347.1,3345.6,0.1495]
[1768768712931,0.1641508,3346.8,3345.6,0.1495]
[1768768713118,0.1641508,3346.8,3345.7,0.95335298]
[1768768717635,0.16678128,3347.2,3346.3,0.95335298]
[1768768720344,0.16678128,3347.2,3346.1,0.95335298]
[1768768721239,0.16678128,3347.0,3345.4,0.00859928]
[1768768721436,0.16678128,3346.8,3345.4,0.00859928]
[1768768721635,0.16678128,3346.8,3345.6,0.95335298]
[1768768722343,0.16678128,3346.8,3345.4,0.00859928]
[1768768724443,0.16678128,3346.8,3345.5,0.95335298]
[1768768725039,0.16678128,3346.8,3345.7,0.95335298]
[1768768733255,0.1595816,3347.4,3346.3,0.95335298]
[1768768733455,0.88372924,3347.3,3346.3,0.95335298]
[1768768733656,0.88373344,3347.2,3346.3,0.95335298]
[1768768733857,0.1595816,3347.4,3346.3,0.95335298]
[1768768734058,1.04330984,3347.3,3346.3,0.95335298]
[1768768734254,0.88385185,3347.2,3346.1,0.95335298]
[1768768734451,0.1595816,3347.3,3346.1,0.95335298]
[1768768734757,0.88386138,3347.2,3346.1,0.95335298]
[1768768734953,0.1595816,3347.3,3346.1,0.95335298]
[1768768735160,0.8838606,3347.2,3346.1,0.95335298]
[1768768735360,0.1595816,3347.3,3346.1,0.95335298]
[1768768735550,0.88402639,3347.2,3346.1,0.95335298]
[1768768735751,0.1595816,3347.3,3346.1,0.95335298]
[1768768735950,0.88402643,3347.2,3346.1,0.95335298]
[1768768736259,0.1595816,3347.3,3346.1,0.95335298]
[1768768736452,0.88424135,3347.2,3346.1,0.95335298]
[1768768736651,0.1595816,3347.3,3346.1,0.95335298]
[1768768736857,0.87979092,3347.2,3346.1,0.95335298]
[1768768737057,0.1595816,3347.3,3346.1,0.95335298]
[1768768737360,0.87978472,3347.2,3346.1,0.95335298]
[1768768737555,0.1595816,3347.3,3346.1,0.95335298]
[1768768737753,0.87975613,3347.2,3346.1,0.95335298]
[1768768737953,0.1595816,3347.3,3346.1,0.95335298]
[1768768738149,0.87975536,3347.2,3346.1,0.95335298]
[1768768738360,0.1595816,3347.3,3346.1,0.95335298]
[1768768738660,0.1595816,3347.7,3346.5,0.95335298]
[1768768738856,0.87975419,3347.6,3346.5,0.95335298]
[1768768739054,0.87975419,3347.5,3346.5,0.95335298]
[1768768739261,0.1595816,3347.7,3346.3,0.95335298]
[1768768739559,0.1595816,3347.5,3346.3,0.95335298]
[1768768739761,0.1595816,3347.4,3346.1,0.14947]
[1768768740060,0.1595816,3347.2,3346.1,0.14947]
[1768768743658,0.1595816,3347.7,3346.2,0.95335298]
[1768768743858,0.1595816,3347.5,3346.2,0.95335298]
[1768768744062,0.87943593,3347.4,3346.2,0.95335298]
[1768768744266,0.1595816,3347.5,3346.2,0.95335298]
[1768768744469,0.87940645,3347.4,3346.2,0.95335298]
[1768768744672,0.1595816,3347.5,3346.2,0.95335298]
[1768768744974,0.87940662,3347.4,3346.2,0.95335298]
[1768768745265,0.1595816,3347.5,3346.2,0.95335298]
[1768768745465,0.87938985,3347.4,3346.2,0.95335298]
[1768768745667,0.1595816,3347.5,3346.2,0.95335298]
[1768768745967,0.87938982,3347.4,3346.2,0.95335298]
[1768768746168,0.1595816,3347.5,3346.2,0.95335298]
[1768768746361,0.87938463,3347.4,3346.2,0.95335298]
[1768768746561,0.1595816,3347.5,3346.2,0.95335298]
[1768768746767,0.87938481,3347.4,3346.2,0.95335298]
[1768768746967,0.1595816,3347.5,3346.2,0.95335298]
[1768768747167,0.87938478,3347.4,3346.2,0.95335298]
[1768768747369,0.1595816,3347.5,3346.2,0.95335298]
[1768768747672,1.03897133,3347.4,3346.2,0.95335298]
[1768768747870,0.1595816,3347.4,3346.2,0.95335298]
[1768768751070,0.1595816,3347.4,3346.2,1.10282298]
[1768768751266,0.1595816,3347.4,3346.4,0.95335298]
[1768768760584,0.1595816,3347.4,3346.2,1.10282298]
[1768768768185,0.88016882,3347.3,3346.2,1.10282298]
[1768768768383,0.1595816,3347.4,3346.2,1.10282298]
[1768768768573,0.88017229,3347.3,3346.2,1.10282298]
[1768768768778,0.1595816,3347.4,3346.2,1.10282298]
[1768768768977,0.88017245,3347.3,3346.2,1.10282298]
[1768768769177,0.1595816,3347.4,3346.2,1.10282298]
[1768768769388,0.88020938,3347.3,3346.2,1.10282298]
[1768768769577,0.1595816,3347.4,3346.2,1.10282298]
[1768768769778,0.88020917,3347.3,3346.2,1.10282298]
[1768768769977,0.1595816,3347.4,3346.2,1.10282298]
[1768768770178,0.88020914,3347.3,3346.2,1.10282298]
[1768768770382,0.1595816,3347.4,3346.2,1.10282298]
[1768768770582,0.88021185,3347.3,3346.2,1.10282298]
[1768768770882,0.1595816,3347.4,3346.2,1.10282298]
[1768768771084,0.88021191,3347.3,3346.2,1.10282298]
[1768768771286,0.1595816,3347.4,3346.2,1.10282298]
[1768768771480,0.88021916,3347.3,3346.2,1.10282298]
[1768768771678,0.95335298,3346.3,3345.1,2.23032251]
[1768768771886,1.6135734,3346.4,3344.3,0.15673901]
[1768768772085,0.88021929,3346.3,3344.7,0.15673901]
[1768768772289,0.88021929,3346.2,3345.4,1.11009199]
[1768768772581,4.665,3347.1,3345.5,0.15673901]
[1768768772786,0.95335298,3346.3,3345.1,0.15673901]
[1768768772976,0.95375846,3346.8,3345.5,0.0023562]
[1768768773179,0.91938386,3346.7,3345.5,0.0023562]
[1768768773383,0.91938386,3346.6,3345.5,0.0023562]
[1768768773575,0.91938386,3346.5,3345.5,0.0023562]
[1768768773775,0.91938386,3346.5,3343.9,0.24481741]
[1768768773776,0.95375846,3345.6,3343.5,0.15673901]
[1768768773978,0.91938386,3345.5,3343.6,0.15673901]
[1768768774179,0.548,3345.9,3344.0,0.15673901]
[1768768774381,0.95375846,3345.2,3344.0,0.15673901]
[1768768774584,0.9167107,3345.1,3343.6,0.15673901]
[1768768774787,0.91661514,3345.0,3343.6,0.16005029]
[1768768774975,0.91661514,3344.9,3343.6,0.16005029]
[1768768775181,0.95375846,3345.2,3343.6,0.16005029]
[1768768775482,0.91494025,3345.1,3343.6,0.16005029]
[1768768775683,0.91494025,3345.0,3343.6,0.16005029]
[1768768775888,0.95375846,3343.7,3342.5,0.15673901]
[1768768776091,4.236,3344.0,3342.5,0.15673901]
[1768768776391,0.95375846,3344.4,3342.5,0.15673901]
[1768768776690,0.95375846,3344.0,3341.5,0.95375846]
[1768768776893,0.95642289,3344.0,3341.6,0.16624158]
[1768768777482,0.95375846,3343.6,3341.6,0.16624158]
[1768768777885,1.00809813,3343.6,3341.6,0.16624158]
[1768768778282,5.61175846,3343.8,3341.6,0.16624158]
[1768768778691,0.07311361,3343.7,3341.6,0.16624158]
[1768768778887,0.95375846,3343.4,3341.6,0.16624158]
[1768768779595,0.07311361,3343.7,3341.6,0.16624158]
[1768768780184,0.09139562,3343.9,3341.6,0.16624158]
[1768768780384,0.95375846,3343.5,3341.6,0.16624158]
[1768768780881,0.09139562,3343.9,3341.6,0.16624158]
[1768768781488,4.72839562,3343.9,3341.6,0.16624158]
[1768768782194,0.09139562,3343.9,3341.6,0.16624158]
[1768768783898,3.08239562,3343.9,3341.6,0.16624158]
[1768768785101,0.17387215,3343.8,3341.6,0.16624158]
[1768768791895,0.15223443,3344.0,3341.7,0.16624158]
[1768768792098,0.00266443,3344.0,3342.0,0.31590158]
[1768768792297,0.00266443,3344.0,3342.2,0.16624158]
[1768768792999,0.00266443,3344.0,3342.4,0.30260569]
[1768768794598,0.00266443,3344.0,3342.4,0.14964]
[1768768794902,0.00266443,3344.0,3342.5,0.30260569]
[1768768798307,0.00266443,3344.0,3342.7,0.30260569]
[1768768799398,0.00266443,3344.0,3342.7,0.45223569]
[1768768799598,0.00266443,3344.0,3342.8,0.30260569]
[1768768801010,0.92159749,3343.9,3342.0,0.45226569]
[1768768801307,0.92159749,3343.8,3342.0,0.45226569]
[1768768801509,0.28370173,3344.0,3342.0,0.45226569]
[1768768801510,0.92159749,3343.7,3342.0,0.45226569]
[1768768801806,0.92159749,3343.6,3342.0,0.45226569]
[1768768802009,0.28370173,3344.0,3342.0,0.45226569]
[1768768802200,0.92330184,3343.9,3342.0,0.45226569]
[1768768802401,0.92330184,3343.8,3342.0,0.45226569]
[1768768802600,0.92330184,3343.7,3342.0,0.45226569]
[1768768802801,0.92330184,3343.6,3342.0,0.45226569]
[1768768803003,0.92330184,3343.5,3342.0,0.45226569]
[1768768803200,0.92613487,3343.4,3342.0,0.45226569]
[1768768803510,0.92613487,3343.3,3342.0,0.45226569]
[1768768803811,1.6135734,3343.9,3342.0,0.45226569]
[1768768804108,0.92643241,3343.8,3342.0,0.45226569]
[1768768804309,2.54000581,3343.7,3342.0,0.45226569]
[1768768804498,0.92643241,3343.6,3342.0,0.45226569]
[1768768804900,0.92643241,3343.6,3342.1,0.30260569]
[1768768805612,0.92643241,3343.6,3342.2,0.30260569]
[1768768805802,0.92643241,3343.5,3342.2,0.30260569]
[1768768806005,0.92643241,3343.4,3342.2,0.30260569]
[1768768806207,0.92643241,3343.3,3342.2,0.30260569]
[1768768806407,1.6135734,3343.8,3342.2,0.30260569]
[1768768806408,0.92643241,3343.2,3342.2,0.30260569]
[1768768806614,1.6135734,3343.8,3342.2,0.30260569]
[1768768806815,0.9282376,3343.7,3342.2,0.30260569]
[1768768807019,0.9282376,3343.6,3342.2,0.30260569]
[1768768807315,0.9282376,3343.5,3342.2,0.30260569]
[1768768807517,0.9282376,3343.4,3342.2,0.30260569]
[1768768807716,0.9282376,3343.3,3342.2,0.30260569]
[1768768807906,1.6135734,3343.8,3342.2,0.30260569]
[1768768808109,0.9282193,3343.7,3342.2,0.30260569]
[1768768808309,0.9282193,3343.6,3342.2,0.30260569]
[1768768808610,0.00116793,3344.0,3342.4,0.45224569]
[1768768808814,0.28220523,3344.0,3342.4,0.14964]
[1768768809810,0.00116793,3344.0,3342.8,0.14962]
[1768768810719,0.2810373,3343.9,3342.1,0.14965]
[1768768812917,0.2810373,3343.9,3342.2,0.14965]
[1768768813819,0.2810373,3343.9,3342.4,0.14964]
[1768768814010,0.00116793,3344.0,3342.6,0.14963]
[1768768815317,0.28220523,3344.0,3342.6,0.14963]
[1768768820621,0.92511276,3343.9,3342.6,0.14963]
[1768768820923,0.92511276,3343.8,3342.7,0.14963]
[1768768821125,0.92511276,3343.7,3342.7,0.14963]
[1768768821327,0.28220523,3344.0,3342.7,0.14963]
[1768768821529,0.92557233,3343.9,3342.7,0.14963]
[1768768821730,0.92557233,3343.8,3342.7,0.14963]
[1768768821921,0.92557233,3343.7,3342.7,0.14963]
[1768768822123,0.28220523,3344.0,3342.7,0.14963]
[1768768822430,0.92557203,3343.9,3342.7,0.14963]
[1768768822632,0.92557203,3343.9,3342.2,0.30260569]
[1768768822633,0.92557203,3343.8,3342.8,0.14962]
[1768768822827,0.00116793,3344.0,3342.8,0.14962]
[1768768823028,0.92571732,3343.9,3342.8,0.14962]
[1768768823233,0.00116793,3344.0,3342.8,0.14962]
[1768768823426,0.92534178,3343.9,3342.8,0.14962]
[1768768823732,0.00116793,3344.0,3342.8,0.14962]
[1768768823930,0.92535922,3343.9,3342.8,0.14962]
[1768768824131,0.00116793,3344.0,3342.8,0.14962]
[1768768828435,1.6135734,3344.7,3342.9,0.14962]
[1768768828637,0.49170081,3344.5,3342.9,0.14962]
[1768768828832,0.49170081,3344.3,3342.9,0.14962]
[1768768829033,0.91996716,3344.2,3342.9,0.14962]
[1768768829237,0.49170081,3344.1,3342.9,0.14962]
[1768768829534,0.49453365,3344.1,3342.9,0.14962]
[1768768831336,0.49453365,3344.1,3342.2,0.14965]
[1768768832937,0.49453365,3344.1,3342.3,0.14964]
[1768768835031,0.49453365,3344.1,3342.4,0.14964]
[1768768842740,0.00283284,3344.1,3342.4,0.62159987]
[1768768842944,0.62567472,3344.1,3342.9,0.14962]
[1768768852656,0.62567472,3344.1,3343.0,0.95490638]
[1768768856451,0.62567472,3344.1,3342.9,0.14962]
[1768768857652,0.70294409,3343.9,3342.9,0.14962]
[1768768858051,0.70294409,3343.8,3342.2,1.10455638]
[1768768858254,0.21664147,3343.8,3342.2,1.10455638]
[1768768858852,0.21664147,3343.8,3342.3,0.14964]
[1768768859553,0.21664147,3343.8,3342.5,0.95490638]
[1768768860249,0.21664147,3343.8,3342.5,1.10453638]
[1768768860462,0.00283284,3344.1,3342.7,0.95490638]
[1768768860644,0.92223083,3344.0,3342.7,0.95490638]
[1768768860844,1.23268331,3344.2,3342.7,0.95490638]
[1768768861051,0.92224222,3344.1,3342.7,0.95490638]
[1768768861252,0.92224222,3344.0,3342.7,0.95490638]
[1768768861455,1.23268331,3344.2,3342.7,0.95490638]
[1768768861642,0.92225461,3344.1,3342.7,0.95490638]
[1768768861847,0.92225461,3344.0,3342.7,0.95490638]
[1768768862655,0.95490638,3343.9,3342.6,0.87209469]
[1768768864557,0.00212431,3344.1,3342.6,0.87209469]
[1768768864958,0.92231518,3344.0,3342.7,0.95490638]
[1768768865151,0.00212431,3344.1,3342.7,0.95490638]
[1768768865452,0.92233554,3344.0,3342.7,0.95490638]
[1768768865649,0.00212431,3344.1,3342.7,0.95490638]
[1768768865957,0.9223352,3344.0,3342.7,0.95490638]
[1768768866158,0.00212431,3344.1,3342.7,0.95490638]
[1768768866359,0.92235152,3344.0,3342.7,0.95490638]
[1768768866558,0.00212431,3344.1,3342.7,0.95490638]
[1768768866759,0.92236374,3344.0,3342.7,0.95490638]
[1768768866960,0.00212431,3344.1,3342.7,0.95490638]
[1768768867157,0.92236198,3344.0,3342.7,0.95490638]
[1768768867358,0.00212431,3344.1,3342.7,0.95490638]
[1768768867560,0.92237275,3344.0,3342.7,0.95490638]
[1768768867757,0.00212431,3344.1,3342.7,0.95490638]
[1768768867959,0.92237251,3344.0,3342.7,0.95490638]
[1768768868154,0.00212431,3344.1,3342.7,0.95490638]
[1768768868353,0.9223843,3344.0,3342.7,0.95490638]
[1768768868651,0.00212431,3344.1,3342.7,0.95490638]
[1768768868847,0.92238432,3344.0,3342.7,0.95490638]
[1768768869060,0.00212431,3344.1,3342.7,0.95490638]
[1768768869265,0.92238532,3344.0,3342.7,0.95490638]
[1768768869456,0.00212431,3344.1,3342.7,0.95490638]
[1768768869652,0.92238985,3344.0,3342.7,0.95490638]
[1768768869854,0.00212431,3344.1,3342.7,0.95490638]
[1768768870052,0.9223899,3344.0,3342.7,0.95490638]
[1768768870253,0.00212431,3344.1,3342.7,0.95490638]
[1768768870454,0.92240648,3344.0,3342.7,0.95490638]
[1768768870656,0.00212431,3344.1,3342.7,0.95490638]
[1768768870855,0.92240651,3344.0,3342.7,0.95490638]
[1768768871154,0.00212431,3344.1,3342.7,0.95490638]
[1768768871355,0.92242516,3344.0,3342.7,0.95490638]
[1768768871559,0.00212431,3344.1,3342.7,0.95490638]
[1768768871854,0.9223969,3344.0,3342.7,0.95490638]
[1768768872053,0.00212431,3344.1,3342.7,0.95490638]
[1768768872254,0.92228405,3344.0,3342.7,0.95490638]
[1768768872468,0.00212431,3344.1,3342.7,0.95490638]
[1768768872659,0.9223393,3344.0,3342.7,0.95490638]
[1768768872860,0.00212431,3344.1,3342.7,0.95490638]
[1768768873054,0.92239859,3344.0,3342.7,0.95490638]
[1768768873256,0.00212431,3344.1,3342.7,0.95490638]
[1768768873456,0.92242205,3344.0,3342.8,0.72246469]
[1768768873666,0.00212431,3344.1,3342.8,0.72246469]
[1768768873865,0.92242484,3344.0,3342.8,0.72246469]
[1768768874068,0.00212431,3344.1,3342.8,0.72246469]
[1768768874270,0.92243015,3344.0,3342.8,0.72246469]
[1768768874468,0.00212431,3344.1,3342.8,0.72246469]
[1768768874768,0.92242895,3344.0,3342.8,0.72246469]
[1768768875064,0.00212431,3344.1,3342.8,0.72246469]
[1768768875266,0.92240841,3344.0,3342.8,0.72246469]
[1768768875453,0.00212431,3344.1,3342.8,0.72246469]
[1768768875659,0.92240942,3344.0,3342.8,0.72246469]
[1768768875960,0.00212431,3344.1,3342.8,0.72246469]
[1768768876159,0.92240924,3344.0,3342.8,0.72246469]
[1768768876361,0.00212431,3344.1,3342.8,0.72246469]
[1768768876661,0.92241569,3344.0,3342.8,0.72246469]
[1768768876861,0.00212431,3344.1,3342.8,0.72246469]
[1768768877071,0.92238873,3344.0,3342.8,0.72246469]
[1768768877270,0.00212431,3344.1,3342.8,0.72246469]
[1768768877473,0.92239515,3344.0,3342.8,0.72246469]
[1768768877664,0.00212431,3344.1,3342.8,0.72246469]
[1768768877863,0.92239306,3344.0,3342.8,0.72246469]
[1768768878064,0.00212431,3344.1,3342.8,0.72246469]
[1768768878265,0.92239887,3344.0,3342.8,0.72246469]
[1768768878471,0.00212431,3344.1,3342.8,0.72246469]
[1768768878665,0.92240143,3344.0,3342.8,0.72246469]
[1768768878864,0.00212431,3344.1,3342.8,0.72246469]
[1768768879069,0.92240151,3344.0,3342.8,0.72246469]
[1768768879270,0.00212431,3344.1,3342.8,0.72246469]
[1768768879570,0.92241285,3344.0,3342.8,0.72246469]
[1768768879865,0.00212431,3344.1,3342.8,0.72246469]
[1768768880170,0.92241481,3344.0,3342.8,0.72246469]
[1768768880370,0.00212431,3344.1,3342.8,0.72246469]
[1768768880569,0.92243,3344.0,3342.8,0.72246469]
[1768768880762,0.00212431,3344.1,3342.8,0.72246469]
[1768768880962,0.9224305,3344.0,3342.8,0.72246469]
[1768768881163,0.00212431,3344.1,3342.8,0.72246469]
[1768768881462,0.92244772,3344.0,3342.8,0.72246469]
[1768768881657,0.95490638,3343.9,3342.6,0.14963]
[1768768881864,0.95490638,3343.9,3342.0,2.992]
[1768768881865,0.95490638,3343.3,3342.0,0.72246469]
[1768768882066,0.46857557,3343.3,3342.0,0.72246469]
[1768768882971,0.70294409,3343.9,3342.0,0.72246469]
[1768768883172,0.95490638,3343.4,3342.0,0.72246469]
[1768768884078,0.95490638,3343.4,3342.1,0.95490638]
[1768768884574,0.95490638,3343.6,3342.1,1.82082991]
[1768768885078,0.95490638,3343.6,3342.2,0.86592353]
[1768768885278,0.95490638,3343.8,3342.3,1.82082991]
[1768768885576,0.95490638,3343.8,3342.5,0.95490638]
[1768768886575,0.95490638,3343.5,3342.1,0.14965]
[1768768886774,0.95490638,3342.9,3341.9,0.86592353]
[1768768889574,0.95490638,3342.9,3341.5,0.86873651]
[1768768891381,0.90200216,3343.4,3341.5,0.86873651]
[1768768891573,0.95490638,3343.0,3341.6,0.95490638]
[1768768892373,0.95490638,3343.1,3341.6,0.95490638]
[1768768893775,0.90200216,3343.4,3341.7,0.86592353]
[1768768893983,0.95490638,3343.3,3341.9,0.86592353]
[1768768896877,0.90200216,3343.4,3341.9,0.86592353]
[1768768901684,1.01228244,3343.2,3341.5,0.00281298]
[1768768901888,0.9554321,3342.3,3341.4,0.005986]
[1768768902081,1.96771454,3342.3,3340.3,1.15576144]
[1768768902276,1.01228244,3342.2,3340.3,1.15576144]
[1768768902882,1.01228244,3342.2,3340.3,1.15950138]
[1768768903080,1.01228244,3341.8,3340.3,0.00373994]
[1768768904081,1.01228244,3342.2,3340.3,1.00977138]
[1768768909193,1.01228244,3341.8,3340.3,0.00373994]
[1768768909886,1.01228244,3341.5,3340.3,0.00373994]
[1768768910086,1.01547345,3341.5,3340.3,0.00373994]
[1768768911194,1.01228244,3341.3,3339.0,0.14979]
[1768768911393,1.01228244,3340.8,3338.2,1.00603144]
[1768768911598,1.01228244,3340.8,3338.4,1.00603144]
[1768768911801,1.01228244,3340.8,3338.8,1.00603144]
[1768768912197,1.01228244,3340.8,3338.8,1.00929126]
[1768768916990,0.00319101,3341.5,3339.4,1.05381717]
[1768768917198,0.00319101,3341.5,3339.8,1.20357717]
[1768768917592,0.00319101,3341.5,3339.9,0.14975]
[1768768917903,0.00319101,3341.5,3340.0,1.05381717]
[1768768921603,0.00319101,3341.5,3340.0,1.20356717]
[1768768921792,1.04579068,3342.9,3340.2,1.05381717]
[1768768921997,0.92495498,3342.8,3340.5,1.20353717]
[1768768922306,1.04579068,3343.4,3341.0,1.05381717]
[1768768922493,1.04579068,3343.4,3341.4,1.05381717]
[1768768922696,1.04579068,3344.0,3341.4,1.05381717]
[1768768922896,1.97120876,3343.9,3341.4,1.0566103]
[1768768923109,1.97120876,3343.8,3341.4,1.0566103]
[1768768923405,1.97120876,3343.7,3341.4,1.0566103]
[1768768923604,1.04579068,3343.5,3341.4,1.0566103]
[1768768923906,1.04579068,3343.3,3341.4,0.00279313]
[1768768928707,1.04579068,3343.1,3341.4,0.00279313]
[1768768928906,1.04579068,3342.9,3341.4,0.00279313]
[1768768929102,0.1496,3343.3,3341.4,0.00279313]
[1768768929103,1.04579068,3342.7,3341.4,0.00279313]
[1768768929309,1.04579068,3342.5,3341.4,0.00279313]
[1768768930411,1.97286621,3342.4,3341.4,0.00279313]
[1768768930613,1.04579068,3342.4,3341.4,0.00279313]
[1768768934503,1.04579068,3342.9,3341.4,0.00279313]
[1768768934707,1.97338371,3342.8,3341.4,0.00279313]
[1768768935003,0.92759303,3342.7,3341.4,0.00279313]
[1768768937321,1.97338371,3342.7,3341.4,0.00279313]
[1768768937611,1.97338371,3342.6,3341.4,0.00279313]
[1768768937907,0.92759303,3342.5,3341.4,0.00279313]
[1768768938115,1.04579068,3342.6,3341.4,0.00279313]
[1768768938413,0.92742414,3342.5,3341.4,0.00279313]
[1768768938612,1.04579068,3342.6,3341.4,0.00279313]
[1768768938815,0.92752436,3342.5,3341.4,0.00279313]
[1768768939015,1.04579068,3342.6,3341.4,0.00279313]
[1768768939219,0.92758499,3342.5,3341.4,0.00279313]
[1768768939408,1.04579068,3342.6,3341.4,0.00279313]
[1768768939716,0.92757191,3342.5,3341.4,0.00279313]
[1768768939915,1.04579068,3342.6,3341.4,0.00279313]
[1768768940116,0.92757809,3342.5,3341.4,0.00279313]
[1768768940420,1.04579068,3342.6,3341.4,0.00279313]
[1768768940716,0.92762393,3342.5,3341.4,0.00279313]
[1768768940918,1.04579068,3342.6,3341.4,0.00279313]
[1768768941117,0.92762427,3342.5,3341.4,0.00279313]
[1768768941318,1.04579068,3342.6,3341.4,0.00279313]
[1768768941522,0.92768507,3342.5,3341.4,0.00279313]
[1768768941818,0.14962,3343.0,3341.4,0.00279313]
[1768768942010,0.92768643,3342.9,3341.4,0.00279313]
[1768768942321,0.92768643,3342.8,3341.4,0.00279313]
[1768768942511,0.92768643,3342.7,3341.4,0.00279313]
[1768768942817,6.357,3343.1,3341.4,1.0824184]
[1768768943012,0.92828125,3343.0,3341.4,1.0824184]
[1768768943216,0.92828125,3342.9,3341.4,1.0824184]
[1768768943418,0.92828125,3342.8,3341.4,1.0824184]
[1768768943718,7.54527125,3343.1,3341.4,1.0824184]
[1768768943918,0.92872686,3343.0,3341.4,1.0824184]
[1768768944122,0.92872686,3342.9,3341.4,1.0824184]
[1768768944314,0.92872686,3342.8,3341.4,1.0824184]
[1768768944514,0.92872686,3342.7,3341.4,1.0824184]
[1768768944715,7.54527125,3343.1,3341.4,1.0824184]
[1768768944916,0.92927331,3343.0,3341.4,1.0824184]
[1768768945213,0.92927331,3342.9,3341.4,1.0824184]
[1768768945410,0.92927331,3342.8,3341.4,1.0824184]
[1768768945608,0.92927331,3342.7,3341.4,1.0824184]
[1768768945810,1.18827125,3343.1,3341.4,1.0824184]
[1768768946010,0.92997385,3343.0,3341.4,1.0824184]
[1768768946218,0.92997385,3342.9,3341.4,1.0824184]
[1768768946422,0.92997385,3342.8,3341.4,1.0824184]
[1768768946620,0.92997385,3342.7,3341.4,1.0824184]
[1768768946820,1.18827125,3343.3,3341.4,1.0824184]
[1768768947025,0.93076056,3343.2,3341.4,1.0824184]
[1768768947218,0.93076056,3343.1,3341.4,1.0824184]
[1768768947522,0.93076056,3343.0,3341.4,1.0824184]
[1768768947824,0.93076056,3342.9,3341.4,1.0824184]
[1768768948029,0.93076056,3342.8,3341.4,1.0824184]
[1768768948220,0.93076056,3342.7,3341.4,1.0824184]
[1768768948416,1.18827125,3343.3,3341.4,1.0824184]
[1768768948617,0.9311221,3343.2,3341.4,1.0824184]
[1768768948915,0.9311221,3343.1,3341.4,1.0824184]
[1768768949120,0.9311221,3343.0,3341.4,1.0824184]
[1768768949322,0.9311221,3342.9,3341.4,1.0824184]
[1768768949623,0.9311221,3342.8,3341.4,1.0824184]
[1768768949822,0.9311221,3342.7,3341.4,1.0824184]
[1768768950024,1.18827125,3343.2,3341.4,1.0824184]
[1768768950224,0.9312662,3343.1,3341.4,1.0824184]
[1768768950524,0.9312662,3343.0,3341.4,1.0824184]
[1768768950723,0.9312662,3342.9,3341.4,1.0824184]
[1768768950929,0.9312662,3342.8,3341.4,1.0824184]
[1768768951135,0.9312662,3342.7,3341.4,1.0824184]
[1768768951333,1.18827125,3343.2,3341.4,1.0824184]
[1768768951538,0.93127018,3343.1,3341.4,1.0824184]
[1768768951731,0.93127018,3343.0,3341.4,1.0824184]
[1768768952036,0.93127018,3342.9,3341.4,1.0824184]
[1768768952232,0.93127018,3342.8,3341.4,1.0824184]
[1768768952438,0.93127018,3342.7,3341.4,1.0824184]
[1768768952626,1.18827125,3343.2,3341.4,1.0824184]
[1768768952825,0.93130878,3343.1,3341.4,1.0824184]
[1768768953031,0.93130878,3343.0,3341.4,1.0824184]
[1768768953231,0.93130878,3342.9,3341.4,1.0824184]
[1768768953433,0.93130878,3342.8,3341.4,1.0824184]
[1768768953634,0.93130878,3342.7,3341.4,1.0824184]
[1768768953835,2.80184465,3343.2,3341.4,1.0824184]
[1768768954036,0.93137252,3343.1,3341.4,1.0824184]
[1768768954238,0.93137252,3343.0,3341.4,1.0824184]